bitfinex-derivatives/quotes_BTCF0:USTF0_20250212
["timestamp","ask_amount","ask_price","bid_price","bid_amount"]
[1739381331871,0.18216013,97580.0,97565.0,0.3608]
[1739381332070,0.08444,97569.0,97565.0,0.3608]
[1739381333070,0.2894148,97569.0,97565.0,0.3608]
[1739381333269,0.2049766,97568.0,97557.0,0.00015376]
[1739381333470,0.001,97561.0,97557.0,0.00015376]
[1739381333873,0.103,97566.0,97557.0,0.00015376]
[1739381334070,0.3079796,97566.0,97565.0,0.002]
[1739381334578,0.4125796,97566.0,97565.0,0.001]
[1739381334770,0.4125796,97566.0,97557.0,0.00115376]
[1739381334771,0.001,97561.0,97557.0,0.00215376]
[1739381335171,0.001,97561.0,97557.0,0.00115376]
[1739381335575,0.20499,97562.0,97557.0,0.00015376]
[1739381335775,0.2049912,97561.0,97557.0,0.00015376]
[1739381336671,0.2059912,97561.0,97557.0,0.00115376]
[1739381337880,0.2049944,97559.0,97557.0,0.00215376]
[1739381338978,0.2049944,97559.0,97557.0,0.00115376]
[1739381339279,0.2049944,97559.0,97557.0,0.00215376]
[1739381339478,0.103,97558.0,97557.0,0.00215376]
[1739381341078,0.104,97558.0,97557.0,0.00215376]
[1739381341478,0.104,97558.0,97557.0,0.001]
[1739381341676,0.40353424,97558.0,97557.0,0.002]
[1739381341878,0.31705424,97558.0,97557.0,0.002]
[1739381343290,0.2050154,97549.0,97548.0,0.00015376]
[1739381343480,0.2050422,97537.0,97534.0,0.3608]
[1739381343682,0.2050447,97536.0,97534.0,0.3608]
[1739381343882,0.3608,97535.0,97515.0,0.3608]
[1739381344084,0.1032,97534.0,97515.0,0.3608]
[1739381344384,0.2050815,97518.0,97515.0,0.00832543]
[1739381344582,0.3608,97524.0,97506.0,0.3608]
[1739381344778,0.2050803,97519.0,97507.0,0.00015376]
[1739381344985,0.00015376,97526.0,97507.0,0.00015376]
[1739381345184,0.2050923,97513.0,97507.0,0.00015376]
[1739381345685,0.1037,97525.0,97510.0,0.3608]
[1739381345686,0.2050765,97520.0,97510.0,0.3608]
[1739381345887,0.2050765,97520.0,97519.0,0.3608]
[1739381346294,0.00015376,97526.0,97519.0,0.3608]
[1739381346477,0.00015376,97526.0,97520.0,0.3608]
[1739381346886,0.00015376,97526.0,97521.0,0.1033]
[1739381347084,0.2050707,97523.0,97520.0,0.3608]
[1739381347394,0.00015376,97526.0,97508.0,0.1033]
[1739381347687,0.2050895,97514.0,97512.0,0.1793899]
[1739381347883,0.001,97520.0,97512.0,0.1793899]
[1739381348077,0.205075,97521.0,97519.0,0.3608]
[1739381348292,0.00315376,97526.0,97519.0,0.3608]
[1739381348489,0.2050911,97513.0,97512.0,0.1793899]
[1739381348795,0.2050911,97513.0,97512.0,0.1535644]
[1739381349095,0.2050811,97518.0,97512.0,0.1695989]
[1739381349391,0.01715376,97526.0,97513.0,0.0160345]
[1739381349392,0.2040833,97517.0,97513.0,0.0160345]
[1739381349595,0.2040833,97517.0,97514.0,0.0160345]
[1739381349783,0.2040833,97517.0,97515.0,0.0160345]
[1739381349983,0.2040833,97517.0,97516.0,0.0160345]
[1739381350184,0.01615376,97526.0,97513.0,0.0977]
[1739381350384,0.3608,97515.0,97513.0,0.0977]
[1739381350682,0.5658869,97515.0,97513.0,0.001]
[1739381351085,0.2050911,97513.0,97512.0,0.1535644]
[1739381351293,0.2050911,97513.0,97512.0,0.1545644]
[1739381351791,0.2050911,97513.0,97512.0,0.001]
[1739381351981,0.2050911,97513.0,97507.0,0.00015376]
[1739381351982,0.3608,97515.0,97507.0,0.00015376]
[1739381352188,0.2051016,97508.0,97507.0,0.00015376]
[1739381353383,0.2121016,97508.0,97507.0,0.00115376]
[1739381354096,0.2111016,97508.0,97507.0,0.00115376]
[1739381354297,0.006,97508.0,97474.0,0.3608]
[1739381354486,0.18216013,97501.0,97490.0,0.096]
[1739381354795,0.3608,97502.0,97491.0,0.00981207]
[1739381354988,0.2051248,97497.0,97491.0,0.00981207]
[1739381355484,0.3608,97502.0,97491.0,0.01081207]
[1739381355693,0.2051165,97501.0,97491.0,0.01081207]
[1739381356294,0.3608,97502.0,97493.0,0.3608]
[1739381356593,0.205122,97499.0,97494.0,0.01603535]
[1739381356792,0.005,97497.0,97493.0,0.3608]
[1739381357183,0.08624,97496.0,97493.0,0.3608]
[1739381357993,0.014,97497.0,97493.0,0.3608]
[1739381358188,0.08612,97496.0,97491.0,0.01081207]
[1739381358389,0.014,97497.0,97491.0,0.01081207]
[1739381358692,0.014,97496.0,97493.0,0.001]
[1739381358994,0.08616,97495.0,97493.0,0.001]
[1739381359199,0.08616,97495.0,97491.0,0.00981207]
[1739381359401,0.019,97496.0,97491.0,0.01081207]
[1739381360501,0.2051315,97494.0,97491.0,0.01081207]
[1739381360892,0.2051353,97492.0,97491.0,0.01081207]
[1739381361087,0.2051353,97492.0,97483.0,0.3608]
[1739381361294,0.2051458,97487.0,97483.0,0.3608]
[1739381361493,0.2051458,97487.0,97484.0,0.00830382]
[1739381361695,0.20515,97485.0,97484.0,0.00015384]
[1739381362094,0.20415,97485.0,97484.0,0.00015384]
[1739381362694,0.20315,97485.0,97484.0,0.00015384]
[1739381363291,0.20615,97485.0,97484.0,0.00015384]
[1739381363499,0.205186,97468.0,97466.0,0.23958952]
[1739381363798,0.3608,97479.0,97466.0,0.23958952]
[1739381364005,0.2051879,97467.0,97466.0,0.23958952]
[1739381364590,0.2081507,97485.0,97470.0,0.2051815]
[1739381364793,0.017,97485.0,97484.0,0.36164616]
[1739381365107,0.1967,97517.0,97484.0,0.41164616]
[1739381365301,0.00153908,97520.0,97510.0,0.3608]
[1739381365600,0.00153908,97520.0,97519.0,0.3608]
[1739381365802,0.12126056,97560.0,97527.0,0.2050608]
[1739381365999,0.204997,97558.0,97530.0,0.48206056]
[1739381366195,0.3608,97563.0,97530.0,0.48206056]
[1739381366196,0.00015384,97553.0,97540.0,0.12126056]
[1739381366602,0.00015384,97553.0,97538.0,0.3608]
[1739381367499,0.00015384,97553.0,97540.0,0.12126056]
[1739381367697,0.00015384,97553.0,97547.0,0.3608]
[1739381368400,0.00115384,97553.0,97552.0,0.2050091]
[1739381368905,0.00515384,97553.0,97552.0,0.5658091]
[1739381369106,0.14625136,97566.0,97554.0,0.2050039]
[1739381369307,0.14625136,97566.0,97565.0,0.3608]
[1739381370301,0.76077829,97580.0,97565.0,0.3608]
[1739381370302,0.00015376,97575.0,97565.0,0.3608]
[1739381370498,0.08584,97569.0,97565.0,0.3608]
[1739381370898,0.00015376,97575.0,97565.0,0.36908841]
[1739381371099,0.00015376,97575.0,97565.0,0.3608]
[1739381371502,0.001,97566.0,97565.0,0.3618]
[1739381371906,0.001,97566.0,97565.0,0.3628]
[1739381372107,0.00015376,97575.0,97565.0,0.3628]
[1739381372501,0.36095376,97575.0,97565.0,0.002]
[1739381372703,0.08584,97569.0,97565.0,0.002]
[1739381373507,0.08576,97568.0,97565.0,0.002]
[1739381374301,0.08576,97568.0,97565.0,0.001]
[1739381374502,0.023,97570.0,97565.0,0.001]
[1739381374702,0.0856,97569.0,97565.0,0.001]
[1739381375003,0.02,97570.0,97565.0,0.001]
[1739381375202,0.08548,97569.0,97565.0,0.001]
[1739381375404,0.02,97570.0,97568.0,0.3608]
[1739381375813,0.08576,97569.0,97568.0,0.3608]
[1739381376009,0.08772,97569.0,97568.0,0.3608]
[1739381376708,0.08768,97569.0,97568.0,0.3608]
[1739381376912,0.08768,97569.0,97568.0,0.3618]
[1739381377315,0.002,97569.0,97568.0,0.3618]
[1739381377608,0.759,97591.0,97568.0,0.3618]
[1739381377609,0.00068,97591.0,97568.0,0.36990874]
[1739381377815,0.00068,97593.0,97582.0,0.3608]
[1739381378008,0.00834254,97608.0,97582.0,0.3608]
[1739381378313,0.3608,97597.0,97582.0,0.3608]
[1739381379005,0.00015376,97599.0,97582.0,0.3608]
[1739381379206,0.00015376,97599.0,97582.0,0.3618]
[1739381379413,0.00015376,97599.0,97589.0,0.18169769]
[1739381379910,0.00015376,97599.0,97594.0,0.3608]
[1739381382020,0.2049124,97598.0,97589.0,0.001]
[1739381382314,0.2049188,97595.0,97589.0,0.001]
[1739381382514,0.3608,97593.0,97589.0,0.001]
[1739381382717,0.0856,97592.0,97589.0,0.001]
[1739381382915,0.5664028,97594.0,97589.0,0.001]
[1739381383209,0.3608,97594.0,97559.0,0.3608]
[1739381383409,0.2049518,97580.0,97559.0,0.36897213]
[1739381383612,0.2049561,97578.0,97559.0,0.36897213]
[1739381384007,0.2049561,97578.0,97560.0,0.18169769]
[1739381384210,0.3608,97573.0,97560.0,0.18169769]
[1739381384415,0.3608,97573.0,97559.0,0.00315376]
[1739381384416,0.2049893,97562.0,97559.0,0.00315376]
[1739381384912,0.2049893,97562.0,97559.0,0.00015376]
[1739381385109,0.3608,97565.0,97559.0,0.00315376]
[1739381385408,0.2049725,97570.0,97563.0,0.3608]
[1739381385608,0.2039725,97570.0,97563.0,0.3608]
[1739381386312,0.2049779,97567.0,97563.0,0.3608]
[1739381386817,0.2049779,97567.0,97559.0,0.00315376]
[1739381387012,0.2049779,97567.0,97559.0,0.00015376]
[1739381387219,0.2049779,97567.0,97563.0,0.001]
[1739381387712,0.001,97570.0,97563.0,0.002]
[1739381388218,0.08528,97569.0,97563.0,0.2059859]
[1739381388409,0.001,97570.0,97563.0,0.2059859]
[1739381388609,0.006,97567.0,97563.0,0.2049859]
[1739381389415,0.1,97600.0,97572.0,0.2049662]
[1739381389719,0.1,97600.0,97578.0,0.3608]
[1739381390619,0.1,97600.0,97578.0,0.37682049]
[1739381391119,0.28169769,97600.0,97578.0,0.37682049]
[1739381391414,0.28169769,97600.0,97578.0,0.38552671]
[1739381391809,0.00915376,97579.0,97578.0,0.38652671]
[1739381392515,0.00015376,97579.0,97578.0,0.38552657]
[1739381392710,0.01115376,97579.0,97578.0,0.38652657]
[1739381392911,0.1,97600.0,97578.0,0.38652617]
[1739381393111,0.1,97600.0,97590.0,0.3608]
[1739381393318,0.08844,97599.0,97590.0,0.3608]
[1739381393512,0.3608,97596.0,97578.0,0.37050622]
[1739381393712,0.3608,97582.0,97579.0,0.01602081]
[1739381393912,0.3608,97582.0,97580.0,0.01602081]
[1739381394111,0.3608,97582.0,97578.0,0.001]
[1739381394311,0.3608,97582.0,97579.0,0.01602315]
[1739381394512,0.1012,97589.0,97580.0,0.01602315]
[1739381394719,0.00015376,97590.0,97581.0,0.01602315]
[1739381394919,0.00015376,97590.0,97582.0,0.01602315]
[1739381395121,0.00015376,97590.0,97583.0,0.04165681]
[1739381395315,0.00015376,97590.0,97584.0,0.04165681]
[1739381395625,0.00015376,97590.0,97585.0,0.04165681]
[1739381395923,0.00015376,97590.0,97586.0,0.04165681]
[1739381396216,0.00015376,97590.0,97587.0,0.04165532]
[1739381396418,0.00015376,97590.0,97588.0,0.04165531]
[1739381396615,0.00015376,97590.0,97589.0,0.04165531]
[1739381397719,0.00015376,97590.0,97589.0,0.04165379]
[1739381397923,0.00015376,97590.0,97589.0,0.04165355]
[1739381398725,0.00015376,97590.0,97589.0,0.04365355]
[1739381400115,0.00015376,97590.0,97589.0,0.04265355]
[1739381400519,0.00015376,97590.0,97589.0,0.01702028]
[1739381401721,0.00015376,97590.0,97589.0,0.0270191]
[1739381401915,0.1,97600.0,97589.0,0.0270191]
[1739381402116,0.1,97600.0,97590.0,0.0160191]
[1739381402318,0.12104343,97620.0,97599.0,0.3608]
[1739381402518,0.3608,97607.0,97591.0,0.3608]
[1739381402723,0.2049293,97590.0,97589.0,0.001]
[1739381402922,0.2049398,97585.0,97584.0,0.167707]
[1739381403425,0.3608,97591.0,97584.0,0.167707]
[1739381403623,0.3608,97592.0,97584.0,0.167707]
[1739381403823,0.2049387,97586.0,97584.0,0.167707]
[1739381404026,0.3608,97592.0,97571.0,0.19744532]
[1739381404027,0.2049671,97572.0,97571.0,0.19744532]
[1739381404328,0.3608,97572.0,97536.0,0.3608]
[1739381404525,0.18162741,97550.0,97536.0,0.3608]
[1739381404731,0.2050251,97545.0,97536.0,0.3608]
[1739381405022,0.18162741,97546.0,97536.0,0.3608]
[1739381405423,0.2050406,97538.0,97536.0,0.3608]
[1739381405839,0.2050451,97535.0,97531.0,0.00015378]
[1739381406128,0.00015378,97550.0,97531.0,0.00015378]
[1739381406423,0.00015378,97550.0,97538.0,0.3608]
[1739381407019,0.18178119,97550.0,97538.0,0.3608]
[1739381407426,0.2050238,97546.0,97538.0,0.3608]
[1739381407825,0.2050257,97545.0,97538.0,0.3608]
[1739381408026,0.3608,97539.0,97531.0,0.00015378]
[1739381408532,0.2050512,97532.0,97531.0,0.00015378]
[1739381408730,0.2050714,97523.0,97510.0,0.3608]
[1739381408923,0.18162741,97520.0,97510.0,0.3608]
[1739381409123,0.2050785,97519.0,97510.0,0.3608]
[1739381409322,0.2050827,97518.0,97510.0,0.3608]
[1739381409622,0.5658953,97511.0,97497.0,0.3608]
[1739381409821,0.18162741,97510.0,97497.0,0.3608]
[1739381410038,0.5659164,97501.0,97483.0,0.3608]
[1739381410218,0.2051222,97499.0,97483.0,0.3608]
[1739381410424,0.3608,97501.0,97495.0,0.00015378]
[1739381410733,0.75816,97508.0,97495.0,0.00015378]
[1739381410934,0.75831386,97508.0,97495.0,0.00015378]
[1739381411428,0.2051247,97498.0,97495.0,0.00015378]
[1739381411823,0.3608,97499.0,97483.0,0.3608]
[1739381412020,0.18162741,97493.0,97483.0,0.3608]
[1739381412226,0.205146,97487.0,97483.0,0.3608]
[1739381413429,0.0976,97492.0,97475.0,0.00015386]
[1739381413430,0.2051518,97485.0,97475.0,0.00015386]
[1739381413730,0.38677921,97485.0,97475.0,0.00015386]
[1739381414336,0.18162741,97485.0,97475.0,0.00015386]
[1739381414527,0.2051672,97477.0,97475.0,0.00015386]
[1739381414924,0.3608,97482.0,97462.0,0.3608]
[1739381415127,0.3608,97470.0,97462.0,0.3608]
[1739381415323,0.2032001,97462.0,97451.0,0.3608]
[1739381415529,0.27562741,97461.0,97451.0,0.3608]
[1739381415729,0.18162741,97461.0,97435.0,0.3608]
[1739381415937,0.3608,97462.0,97435.0,0.3608]
[1739381415938,0.38685281,97450.0,97443.0,0.3608]
[1739381416239,0.18178127,97460.0,97443.0,0.3608]
[1739381416739,0.2052068,97459.0,97443.0,0.3608]
[1739381417034,0.2042068,97459.0,97443.0,0.3608]
[1739381417237,0.38684631,97453.0,97443.0,0.3608]
[1739381417433,0.2052189,97453.0,97443.0,0.3608]
[1739381417635,0.75900001,97459.0,97451.0,0.3608]
[1739381417829,0.09376,97458.0,97451.0,0.3608]
[1739381418641,0.2052195,97452.0,97451.0,0.3608]
[1739381418851,0.001,97453.0,97451.0,0.3608]
[1739381419435,0.001,97453.0,97443.0,0.3608]
[1739381419637,0.2052388,97443.0,97440.0,0.00015386]
[1739381420032,0.3598,97445.0,97440.0,0.00015386]
[1739381420239,0.2052427,97441.0,97440.0,0.00015386]
[1739381420434,0.2052427,97441.0,97440.0,1e-08]
[1739381421228,0.3598,97445.0,97440.0,1e-08]
[1739381421229,0.3588,97445.0,97440.0,1e-08]
[1739381421435,0.75912001,97446.0,97444.0,0.3608]
[1739381421631,0.09448,97445.0,97444.0,0.3608]
[1739381422540,0.0944,97445.0,97444.0,0.3608]
[1739381422746,0.09456,97445.0,97444.0,0.3608]
[1739381422934,0.006,97445.0,97444.0,0.3618]
[1739381423134,0.3608,97478.0,97444.0,0.3618]
[1739381423135,0.0948,97453.0,97451.0,0.2052199]
[1739381423334,0.0998,97486.0,97452.0,0.3608]
[1739381423537,0.38830688,97490.0,97458.0,0.3608]
[1739381423733,0.00153977,97490.0,97458.0,0.3708]
[1739381423937,0.00153977,97490.0,97483.0,0.3608]
[1739381424540,0.00153977,97490.0,97485.0,0.2051483]
[1739381424745,0.3608,97536.0,97485.0,0.04]
[1739381424938,0.2050428,97536.0,97520.0,0.18162741]
[1739381425137,0.2050226,97546.0,97525.0,0.3608]
[1739381425534,0.18162741,97540.0,97525.0,0.3608]
[1739381425842,0.5658559,97530.0,97519.0,0.00015386]
[1739381426045,0.18162741,97529.0,97519.0,0.00015386]
[1739381426238,0.2050699,97524.0,97520.0,0.001]
[1739381426643,0.3608,97521.0,97520.0,0.001]
[1739381426843,0.45596,97521.0,97520.0,0.001]
[1739381427044,0.45596,97521.0,97514.0,0.00015386]
[1739381427344,0.2051071,97506.0,97480.0,0.3608]
[1739381427548,0.18162741,97500.0,97480.0,0.3608]
[1739381427735,0.3608,97495.0,97480.0,0.3608]
[1739381427934,0.09556,97494.0,97480.0,0.3608]
[1739381428139,0.18162741,97490.0,97480.0,0.3608]
[1739381428349,0.3608,97495.0,97480.0,0.3608]
[1739381429742,0.09528,97494.0,97480.0,0.3668]
[1739381430247,0.09528,97494.0,97480.0,0.3638]
[1739381431042,0.18162741,97490.0,97480.0,0.3638]
[1739381431245,0.004,97494.0,97480.0,0.3638]
[1739381431551,0.09528,97493.0,97480.0,0.3618]
[1739381431950,0.18162741,97490.0,97480.0,0.3618]
[1739381432245,0.18162741,97490.0,97480.0,0.3608]
[1739381432549,0.2051345,97493.0,97480.0,0.3618]
[1739381432954,0.007,97494.0,97480.0,0.3618]
[1739381433147,0.014,97490.0,97488.0,0.3608]
[1739381433449,0.00015386,97497.0,97488.0,0.3608]
[1739381433648,0.3608,97525.0,97496.0,0.3608]
[1739381433649,0.2050675,97525.0,97496.0,0.3608]
[1739381433845,0.2050222,97546.0,97518.0,0.3608]
[1739381434043,0.2050222,97546.0,97526.0,0.3608]
[1739381434439,0.2050222,97546.0,97519.0,0.0957]
[1739381434440,0.18162741,97540.0,97519.0,0.0957]
[1739381434643,0.2050375,97539.0,97519.0,0.0957]
[1739381434848,0.18162741,97540.0,97526.0,0.3608]
[1739381435045,0.00015386,97536.0,97519.0,0.0957]
[1739381435352,0.00015386,97536.0,97528.0,0.3608]
[1739381435840,0.00015386,97536.0,97519.0,0.0957]
[1739381436046,0.01653912,97534.0,97526.0,0.002]
[1739381436644,0.01653912,97534.0,97528.0,0.001]
[1739381437253,0.01453912,97534.0,97526.0,0.002]
[1739381437750,0.00153912,97534.0,97528.0,0.001]
[1739381438448,0.00153912,97534.0,97526.0,0.002]
[1739381438853,0.00353912,97534.0,97528.0,0.001]
[1739381439153,0.00353912,97534.0,97528.0,0.002]
[1739381439850,0.2050562,97530.0,97528.0,0.001]
[1739381440041,0.00353912,97534.0,97528.0,0.001]
[1739381440449,0.00153912,97534.0,97528.0,0.001]
[1739381440649,0.00353912,97534.0,97528.0,0.002]
[1739381441050,0.00353912,97534.0,97533.0,0.3608]
[1739381441357,0.2049766,97568.0,97533.0,0.3608]
[1739381441556,0.2049766,97568.0,97554.0,0.3608]
[1739381441851,0.18162741,97580.0,97554.0,0.3608]
[1739381442051,0.19044605,97580.0,97554.0,0.3608]
[1739381442250,0.18162741,97580.0,97562.0,0.3608]
[1739381442652,0.2049729,97570.0,97557.0,0.00015377]
[1739381442856,0.2049823,97565.0,97557.0,0.00015377]
[1739381443059,0.3608,97563.0,97557.0,0.00015377]
[1739381443250,0.2049954,97559.0,97557.0,0.00015377]
[1739381443752,0.18162741,97549.0,97533.0,0.002]
[1739381443956,0.3608,97541.0,97533.0,0.002]
[1739381444260,0.2050423,97537.0,97528.0,0.3608]
[1739381444454,0.3608,97532.0,97512.0,0.0952]
[1739381444654,0.18162741,97522.0,97512.0,0.0952]
[1739381445250,0.3608,97521.0,97512.0,0.0952]
[1739381445451,0.0952,97520.0,97512.0,0.0952]
[1739381445649,0.205083,97517.0,97510.0,0.3608]
[1739381445852,0.3608,97513.0,97507.0,0.00015377]
[1739381446659,0.3608,97513.0,97512.0,0.001]
[1739381446859,0.4558,97513.0,97512.0,0.001]
[1739381447252,0.4558,97513.0,97507.0,0.00015377]
[1739381447455,0.3608,97513.0,97512.0,0.001]
[1739381447659,0.45568,97513.0,97512.0,0.001]
[1739381448354,0.2051036,97508.0,97483.0,0.00868633]
[1739381448554,0.3608,97503.0,97483.0,0.00868633]
[1739381448755,0.095,97502.0,97483.0,0.00868633]
[1739381449460,0.095,97502.0,97485.0,0.0001046]
[1739381450462,0.3608,97504.0,97485.0,0.0001046]
[1739381450656,0.09456,97501.0,97488.0,0.3618]
[1739381451259,0.18162741,97500.0,97488.0,0.3618]
[1739381451464,0.2051346,97493.0,97485.0,0.0001046]
[1739381451664,0.2051392,97491.0,97488.0,0.001]
[1739381452167,0.2051416,97489.0,97488.0,0.001]
[1739381453468,0.2051322,97494.0,97488.0,0.001]
[1739381453659,0.2051371,97492.0,97488.0,0.001]
[1739381453966,0.2051416,97489.0,97488.0,0.002]
[1739381454168,0.2061416,97489.0,97488.0,0.002]
[1739381454559,0.001,97489.0,97488.0,0.002]
[1739381455070,0.09612,97492.0,97488.0,0.001]
[1739381455368,0.09612,97492.0,97486.0,0.3608]
[1739381455562,0.00015385,97499.0,97488.0,0.3608]
[1739381455768,0.3608,97534.0,97500.0,0.205117]
[1739381455769,0.2050642,97526.0,97500.0,0.205117]
[1739381455965,0.2050642,97526.0,97508.0,0.3608]
[1739381455966,0.3608,97526.0,97508.0,0.3608]
[1739381456165,0.38670531,97520.0,97508.0,0.3608]
[1739381456360,0.2050779,97520.0,97508.0,0.3608]
[1739381456560,0.3608,97509.0,97492.0,0.00882715]
[1739381456759,0.2051058,97506.0,97496.0,0.0931]
[1739381456960,0.3608,97509.0,97491.0,0.36095385]
[1739381457156,0.2051151,97502.0,97500.0,0.002]
[1739381457668,0.3608,97501.0,97500.0,0.002]
[1739381457869,0.45456,97501.0,97500.0,0.002]
[1739381458382,0.45456,97501.0,97500.0,0.003]
[1739381458784,0.45456,97501.0,97500.0,0.001]
[1739381459770,0.45456,97501.0,97491.0,0.00015385]
[1739381459976,0.74754371,97501.0,97500.0,0.001]
[1739381460184,0.5659163,97501.0,97500.0,0.001]
[1739381460374,0.3608,97501.0,97491.0,0.00015385]
[1739381460578,0.2051346,97493.0,97491.0,0.00015385]
[1739381460986,0.3608,97521.0,97491.0,0.30015385]
[1739381461174,0.02056,97657.0,97599.0,0.0512272]
[1739381461375,0.28531131,97636.0,97635.0,0.3608]
[1739381461586,0.27613704,97636.0,97635.0,0.3608]
[1739381461881,0.02056,97657.0,97635.0,0.6608]
[1739381462074,0.00052001,97680.0,97647.0,0.7216]
[1739381462275,0.10779934,97680.0,97679.0,0.3608]
[1739381462585,4.031e-05,97690.0,97679.0,0.3608]
[1739381462789,0.10056,97688.0,97679.0,0.3608]
[1739381462975,0.10727933,97689.0,97687.0,0.3608]
[1739381464081,0.10727933,97689.0,97687.0,0.3618]
[1739381464686,4.031e-05,97690.0,97687.0,0.3618]
[1739381464877,0.10084,97689.0,97687.0,0.3618]
[1739381465377,0.10132,97688.0,97687.0,0.002]
[1739381465785,0.20859933,97688.0,97687.0,0.001]
[1739381466088,0.10727933,97688.0,97687.0,0.001]
[1739381466484,0.31200303,97688.0,97674.0,0.00015356]
[1739381466688,0.10727933,97688.0,97674.0,0.36095356]
[1739381466994,0.10727933,97688.0,97687.0,0.001]
[1739381467187,0.10727933,97688.0,97687.0,0.002]
[1739381467787,0.10727933,97688.0,97687.0,0.001]
[1739381468095,4.031e-05,97690.0,97687.0,0.001]
[1739381468393,0.10076,97689.0,97685.0,0.3608]
[1739381468689,0.10296,97688.0,97687.0,0.002]
[1739381469080,0.002,97688.0,97687.0,0.002]
[1739381469390,0.10288,97688.0,97687.0,0.002]
[1739381469591,0.10088,97688.0,97687.0,0.001]
[1739381470184,0.10088,97688.0,97685.0,0.3628]
[1739381470787,0.00052001,97698.0,97685.0,0.3628]
[1739381471091,0.1012,97707.0,97700.0,0.2046978]
[1739381471291,0.3608,97719.0,97706.0,0.3608]
[1739381471595,0.3608,97719.0,97697.0,0.3608]
[1739381471596,0.2046628,97718.0,97697.0,0.3608]
[1739381471990,0.00015356,97717.0,97698.0,0.00015356]
[1739381472189,0.00015356,97717.0,97705.0,0.3608]
[1739381472384,0.2046732,97713.0,97705.0,0.3608]
[1739381472595,0.10743289,97717.0,97706.0,0.001]
[1739381473190,0.2046664,97716.0,97699.0,0.3608]
[1739381473390,0.9620664,97716.0,97714.0,0.3608]
[1739381473584,1.06934573,97716.0,97714.0,0.3608]
[1739381473790,0.2046729,97713.0,97708.0,0.3608]
[1739381473991,0.2046729,97713.0,97703.0,0.3608]
[1739381474494,0.2046729,97713.0,97712.0,0.3608]
[1739381474691,0.75796001,97716.0,97712.0,0.3608]
[1739381474897,0.1008,97715.0,97712.0,0.3608]
[1739381475196,0.10085677,97715.0,97712.0,0.3608]
[1739381475396,5.677e-05,97715.0,97712.0,0.3608]
[1739381476198,5.677e-05,97715.0,97712.0,0.36954189]
[1739381476393,0.2046433,97727.0,97712.0,0.36954189]
[1739381476699,0.3608,97750.0,97726.0,0.3608]
[1739381476889,0.3608,97750.0,97739.0,0.3608]
[1739381477085,0.2046034,97746.0,97739.0,0.3608]
[1739381477291,0.3608,97750.0,97738.0,0.3608]
[1739381477495,0.3608,97750.0,97726.0,0.3608]
[1739381477496,0.3608,97742.0,97726.0,0.3608]
[1739381477695,0.2046261,97735.0,97731.0,0.00015348]
[1739381477895,0.2046268,97735.0,97734.0,0.3608]
[1739381478495,0.00153574,97744.0,97734.0,0.3608]
[1739381478693,0.2046247,97736.0,97734.0,0.3608]
[1739381479193,0.31190403,97736.0,97734.0,0.3608]
[1739381479699,0.31190403,97736.0,97734.0,0.001]
[1739381480196,1.11788,97735.0,97716.0,0.3608]
[1739381480405,0.2046629,97717.0,97716.0,0.3608]
[1739381481093,0.31194223,97717.0,97716.0,0.3608]
[1739381481290,0.2046629,97717.0,97716.0,0.3618]
[1739381481493,0.2046518,97723.0,97716.0,0.3618]
[1739381481794,0.00015348,97726.0,97716.0,0.3628]
[1739381481994,0.2046614,97718.0,97716.0,0.3628]
[1739381482295,0.10743281,97726.0,97721.0,0.2046526]
[1739381482296,0.00015348,97726.0,97721.0,0.2046526]
[1739381482496,0.00153574,97744.0,97737.0,0.2046193]
[1739381482699,0.00153574,97744.0,97743.0,0.3608]
[1739381483202,0.00153574,97744.0,97743.0,0.5654084]
[1739381483396,0.00153574,97744.0,97743.0,0.3608]
[1739381485000,0.00153574,97744.0,97743.0,0.3668]
[1739381485500,0.00153574,97744.0,97743.0,0.3688]
[1739381485999,0.00153574,97744.0,97743.0,0.3678]
[1739381486394,0.00153574,97744.0,97743.0,0.3618]
[1739381486599,0.00153574,97744.0,97743.0,0.3678]
[1739381487194,0.00153574,97744.0,97743.0,0.3618]
[1739381487595,0.00153574,97744.0,97743.0,0.3608]
[1739381488403,0.757,97765.0,97750.0,0.204592]
[1739381488696,0.10727933,97765.0,97763.0,0.3608]
[1739381489201,0.10727933,97765.0,97743.0,0.3608]
[1739381489499,0.10727933,97765.0,97754.0,0.00015348]
[1739381489702,0.2045833,97755.0,97754.0,0.00015348]
[1739381490097,0.2045993,97748.0,97743.0,0.001]
[1739381490304,0.3608,97746.0,97715.0,0.3608]
[1739381490500,0.3608,97727.0,97715.0,0.3608]
[1739381490702,0.3608,97727.0,97706.0,0.3608]
[1739381491000,0.2046735,97712.0,97695.0,0.3608]
[1739381491192,0.2046772,97711.0,97695.0,0.3608]
[1739381491397,0.2046873,97706.0,97698.0,0.00015348]
[1739381491601,0.30896663,97706.0,97698.0,0.00015348]
[1739381492203,0.30896663,97706.0,97703.0,0.00536]
[1739381492503,0.75676,97705.0,97703.0,0.00536]
[1739381492706,0.10004,97704.0,97703.0,0.00536]
[1739381493109,0.20631933,97704.0,97703.0,0.00536]
[1739381493311,0.10627933,97704.0,97703.0,0.00536]
[1739381493810,0.10627933,97704.0,97703.0,0.00036]
[1739381494212,0.10927933,97704.0,97703.0,0.00036]
[1739381494602,0.11127933,97704.0,97703.0,0.00136]
[1739381495200,0.76184,97704.0,97690.0,0.23336829]
[1739381495403,0.2047362,97682.0,97681.0,0.29468193]
[1739381495908,0.27933808,97691.0,97664.0,0.3608]
[1739381496107,0.2047425,97679.0,97664.0,0.3608]
[1739381496414,0.2047425,97679.0,97675.0,0.00015356]
[1739381497005,0.2037425,97679.0,97675.0,0.00015356]
[1739381497713,0.2037425,97679.0,97678.0,0.3738]
[1739381498114,0.2037425,97679.0,97678.0,0.013]
[1739381498609,0.3608,97682.0,97664.0,0.3608]
[1739381498813,0.3608,97674.0,97655.0,0.3608]
[1739381499213,0.2047711,97666.0,97655.0,0.3608]
[1739381500218,0.00015356,97670.0,97655.0,0.3608]
[1739381500618,0.2047718,97665.0,97664.0,0.002]
[1739381500815,0.2037718,97665.0,97664.0,0.3628]